[Event "*** SCC Grand Prix: Titled Tuesday Blitz"]
[Site "Chess.com"]
[Date "2020.07.07"]
[Round "8"]
[White "Grandmaster2B"]
[Black "NarminSoyunlu"]
[Result "1-0"]
[WhiteElo "2421"]
[BlackElo "2048"]
[TimeControl "180+1"]
[EndTime "11:37:17 PDT"]
[Termination "Grandmaster2B won by resignation"]

1. e4 {[%clk 0:03:00.9]} 1... e6 {[%clk 0:02:58.8]} 2. d4 {[%clk 0:02:59.8]}
2... d5 {[%clk 0:02:59.7]} 3. Nd2 {[%clk 0:03:00.4]} 3... Nf6 {[%clk 0:02:55.7]}
4. e5 {[%clk 0:02:59.5]} 4... Nfd7 {[%clk 0:02:56.3]} 5. Bd3 {[%clk 0:02:54.3]}
5... c5 {[%clk 0:02:56.5]} 6. c3 {[%clk 0:02:55]} 6... Nc6 {[%clk 0:02:57.2]} 7.
Ne2 {[%clk 0:02:54.8]} 7... cxd4 {[%clk 0:02:57.4]} 8. cxd4 {[%clk 0:02:55.7]}
8... f6 {[%clk 0:02:58]} 9. exf6 {[%clk 0:02:54.7]} 9... Qxf6 {[%clk 0:02:58.6]}
10. Nf3 {[%clk 0:02:54.8]} 10... h6 {[%clk 0:02:59.1]} 11. O-O {[%clk
0:02:53.2]} 11... Bd6 {[%clk 0:02:59.5]} 12. Bb1 {[%clk 0:02:47.9]} 12... O-O
{[%clk 0:02:58.8]} 13. Qd3 {[%clk 0:02:44.7]} 13... Rd8 {[%clk 0:02:58.4]} 14.
a3 {[%clk 0:02:14.8]} 14... Nf8 {[%clk 0:02:50.7]} 15. Ng3 {[%clk 0:02:14.7]}
15... Bd7 {[%clk 0:02:47]} 16. Re1 {[%clk 0:02:14.6]} 16... Be8 {[%clk
0:02:46.5]} 17. Qe3 {[%clk 0:02:01.9]} 17... Rac8 {[%clk 0:02:34.5]} 18. Bd2
{[%clk 0:01:54.3]} 18... a6 {[%clk 0:02:22.5]} 19. Bd3 {[%clk 0:01:39]} 19...
Bg6 {[%clk 0:02:12.1]} 20. Bf1 {[%clk 0:01:16.1]} 20... Bf7 {[%clk 0:02:01.8]}
21. Ne5 {[%clk 0:01:12.4]} 21... Nxd4 {[%clk 0:01:36.9]} 22. Qxd4 {[%clk
0:01:06.6]} 22... Rc4 {[%clk 0:01:22]} 23. Qe3 {[%clk 0:00:58.4]} 23... Bc5
{[%clk 0:01:15.3]} 24. Qf3 {[%clk 0:00:44.7]} 24... Rc2 {[%clk 0:00:59.7]} 25.
Qxf6 {[%clk 0:00:19.4]} 25... gxf6 {[%clk 0:00:58.6]} 26. Nxf7 {[%clk
0:00:16.9]} 26... Kxf7 {[%clk 0:00:59.5]} 27. Rac1 {[%clk 0:00:10.9]} 27...
Bxf2+ {[%clk 0:00:56.8]} 28. Kxf2 {[%clk 0:00:10.9]} 28... Rxd2+ {[%clk
0:00:57.4]} 29. Re2 {[%clk 0:00:11.5]} 29... Rxe2+ {[%clk 0:00:56.6]} 30. Bxe2
{[%clk 0:00:12.2]} 30... Rd7 {[%clk 0:00:54.7]} 31. b4 {[%clk 0:00:10.3]} 31...
Ng6 {[%clk 0:00:52.7]} 32. Bh5 {[%clk 0:00:06.9]} 32... Kg7 {[%clk 0:00:51.3]}
33. Ne2 {[%clk 0:00:07.4]} 33... Ne5 {[%clk 0:00:48.5]} 34. Ke3 {[%clk
0:00:04.7]} 34... Nc4+ {[%clk 0:00:47.3]} 35. Kd3 {[%clk 0:00:04.7]} 35... e5
{[%clk 0:00:46.3]} 36. a4 {[%clk 0:00:02.8]} 36... Nb2+ {[%clk 0:00:43.2]} 37.
Kd2 {[%clk 0:00:01.7]} 37... Nxa4 {[%clk 0:00:44.1]} 38. Bg4 {[%clk 0:00:01.9]}
38... Re7 {[%clk 0:00:43.6]} 39. Bc8 {[%clk 0:00:01.1]} 39... Nb6 {[%clk
0:00:42.9]} 40. Bh3 {[%clk 0:00:02]} 40... d4 {[%clk 0:00:40.3]} 41. Kd3 {[%clk
0:00:02.9]} 41... Nd5 {[%clk 0:00:40.3]} 42. Ng3 {[%clk 0:00:02.6]} 42... Nxb4+
{[%clk 0:00:40.4]} 43. Ke4 {[%clk 0:00:02.7]} 43... Kg6 {[%clk 0:00:25.7]} 44.
Nf5 {[%clk 0:00:03.6]} 44... Re8 {[%clk 0:00:26.1]} 45. Nd6 {[%clk 0:00:03.1]}
45... Re7 {[%clk 0:00:24.8]} 46. Bf5+ {[%clk 0:00:02.6]} 46... Kg7 {[%clk
0:00:23.5]} 47. Bc8 {[%clk 0:00:03.1]} 47... f5+ {[%clk 0:00:20.2]} 48. Nxf5+
{[%clk 0:00:03.3]} 48... Kf6 {[%clk 0:00:20.3]} 49. Nxe7 {[%clk 0:00:04.2]}
49... Kxe7 {[%clk 0:00:21.2]} 50. Bxb7 {[%clk 0:00:05.1]} 50... Kd6 {[%clk
0:00:20.7]} 51. Rb1 {[%clk 0:00:04.3]} 51... a5 {[%clk 0:00:20.4]} 52. Ra1
{[%clk 0:00:04]} 52... Kc7 {[%clk 0:00:18.6]} 53. Bd5 {[%clk 0:00:02.9]} 53...
Kd6 {[%clk 0:00:18]} 54. Rxa5 {[%clk 0:00:02.5]} 54... d3 {[%clk 0:00:18]} 55.
Ra1 {[%clk 0:00:01.7]} 55... Nxd5 {[%clk 0:00:17.3]} 56. Ra6+ {[%clk 0:00:02.4]}
56... Kc5 {[%clk 0:00:14.6]} 57. Ra5+ {[%clk 0:00:02.9]} 57... Kc4 {[%clk
0:00:12.6]} 58. Rxd5 {[%clk 0:00:03.8]} 58... d2 {[%clk 0:00:12.9]} 59. Rxd2
{[%clk 0:00:03.8]} 1-0

[Event "*** SCC Grand Prix: Titled Tuesday Blitz"]
[Site "Chess.com"]
[Date "2020.07.07"]
[Round "8"]
[White "BogdanDeac"]
[Black "tsvet2005"]
[Result "1-0"]
[WhiteElo "2806"]
[BlackElo "2634"]
[TimeControl "180+1"]
[EndTime "11:37:19 PDT"]
[Termination "BogdanDeac won by checkmate"]

1. Nf3 {[%clk 0:03:00.9]} 1... d5 {[%clk 0:03:00.2]} 2. d4 {[%clk 0:03:00.6]}
2... Nf6 {[%clk 0:03:00.2]} 3. c4 {[%clk 0:03:00.5]} 3... e6 {[%clk 0:03:00.3]}
4. g3 {[%clk 0:03:00.1]} 4... dxc4 {[%clk 0:03:00.2]} 5. Bg2 {[%clk 0:03:00]}
5... Bb4+ {[%clk 0:03:00.7]} 6. Bd2 {[%clk 0:02:59.5]} 6... a5 {[%clk
0:03:01.3]} 7. a3 {[%clk 0:02:59.1]} 7... Bxd2+ {[%clk 0:03:00.7]} 8. Nbxd2
{[%clk 0:03:00]} 8... b5 {[%clk 0:03:00.1]} 9. b3 {[%clk 0:02:59.5]} 9... cxb3
{[%clk 0:02:43.7]} 10. Qxb3 {[%clk 0:03:00.4]} 10... Ba6 {[%clk 0:02:32]} 11.
O-O {[%clk 0:02:55.6]} 11... O-O {[%clk 0:02:23.5]} 12. Rfc1 {[%clk 0:02:45.7]}
12... Nbd7 {[%clk 0:02:15.1]} 13. e3 {[%clk 0:02:45.1]} 13... Rc8 {[%clk
0:02:04.8]} 14. Rc6 {[%clk 0:02:38]} 14... Bb7 {[%clk 0:02:01.8]} 15. Rc2 {[%clk
0:02:37.7]} 15... c5 {[%clk 0:01:49.2]} 16. Qxb5 {[%clk 0:02:36]} 16... Bc6
{[%clk 0:01:48.9]} 17. Qa6 {[%clk 0:02:29.8]} 17... Nb8 {[%clk 0:01:27]} 18. Qa7
{[%clk 0:02:07.1]} 18... cxd4 {[%clk 0:01:22.1]} 19. Nxd4 {[%clk 0:02:06.7]}
19... Bxg2 {[%clk 0:01:21.7]} 20. Rxc8 {[%clk 0:02:06.4]} 20... Qxc8 {[%clk
0:01:22.6]} 21. Kxg2 {[%clk 0:02:06.8]} 21... e5 {[%clk 0:01:19.1]} 22. N4f3
{[%clk 0:02:03.6]} 22... Qc3 {[%clk 0:01:00.9]} 23. Rb1 {[%clk 0:01:13]} 23...
Nc6 {[%clk 0:00:59.5]} 24. Qc7 {[%clk 0:01:12.2]} 24... Nd5 {[%clk 0:00:50.4]}
25. Qb7 {[%clk 0:00:57.5]} 25... Nce7 {[%clk 0:00:22.2]} 26. e4 {[%clk
0:00:44.3]} 26... Nf4+ {[%clk 0:00:05.4]} 27. gxf4 {[%clk 0:00:43.2]} 27... Ng6
{[%clk 0:00:06.3]} 28. fxe5 {[%clk 0:00:36.1]} 28... Nf4+ {[%clk 0:00:06.8]} 29.
Kh1 {[%clk 0:00:35.2]} 29... Rc8 {[%clk 0:00:06.7]} 30. h4 {[%clk 0:00:13.9]}
30... h5 {[%clk 0:00:05.6]} 31. Rg1 {[%clk 0:00:13.4]} 31... Rd8 {[%clk
0:00:04.2]} 32. e6 {[%clk 0:00:11.2]} 32... Nxe6 {[%clk 0:00:03.8]} 33. Qb3
{[%clk 0:00:09.4]} 33... Qf6 {[%clk 0:00:02.8]} 34. Rg3 {[%clk 0:00:07.5]} 34...
Qf4 {[%clk 0:00:01.7]} 35. Kg1 {[%clk 0:00:06.5]} 35... Qd6 {[%clk 0:00:02.2]}
36. Qe3 {[%clk 0:00:06.1]} 36... Qe7 {[%clk 0:00:02.8]} 37. Nf1 {[%clk
0:00:05.9]} 37... Rc8 {[%clk 0:00:03.3]} 38. Ng5 {[%clk 0:00:05.9]} 38... Rc2
{[%clk 0:00:03.5]} 39. Nxe6 {[%clk 0:00:06]} 39... Qxe6 {[%clk 0:00:04.4]} 40.
Qf4 {[%clk 0:00:06]} 40... f6 {[%clk 0:00:04.4]} 41. Rf3 {[%clk 0:00:05.2]}
41... Rc4 {[%clk 0:00:04.1]} 42. Re3 {[%clk 0:00:05.4]} 42... Rc8 {[%clk
0:00:03.5]} 43. Kg2 {[%clk 0:00:05.5]} 43... Rc4 {[%clk 0:00:03.8]} 44. Ng3
{[%clk 0:00:05.6]} 44... a4 {[%clk 0:00:04.1]} 45. Qf5 {[%clk 0:00:05.8]} 45...
Qe7 {[%clk 0:00:02.9]} 46. Qxh5 {[%clk 0:00:05.4]} 46... Rc1 {[%clk 0:00:02.7]}
47. Qd5+ {[%clk 0:00:05.6]} 47... Kh7 {[%clk 0:00:03]} 48. Rd3 {[%clk
0:00:06.3]} 48... Qc7 {[%clk 0:00:02.2]} 49. Qh5+ {[%clk 0:00:06.2]} 49... Kg8
{[%clk 0:00:02.7]} 50. Qe8+ {[%clk 0:00:06.5]} 50... Kh7 {[%clk 0:00:03]} 51.
Rd8 {[%clk 0:00:06.5]} 51... Qc5 {[%clk 0:00:02.3]} 52. Qh8+ {[%clk 0:00:05.9]}
52... Kg6 {[%clk 0:00:03.2]} 53. Qe8+ {[%clk 0:00:05.8]} 53... Kh7 {[%clk
0:00:03.3]} 54. h5 {[%clk 0:00:06.5]} 54... Rg1+ {[%clk 0:00:01.4]} 55. Kxg1
{[%clk 0:00:05]} 55... Qc1+ {[%clk 0:00:02.3]} 56. Kg2 {[%clk 0:00:05.1]} 56...
Kh6 {[%clk 0:00:03.2]} 57. Qg6# {[%clk 0:00:04.7]} 1-0

[Event "*** SCC Grand Prix: Titled Tuesday Blitz"]
[Site "Chess.com"]
[Date "2020.07.07"]
[Round "8"]
[White "maciek_92"]
[Black "MomchilPetkov"]
[Result "1-0"]
[WhiteElo "2680"]
[BlackElo "2541"]
[TimeControl "180+1"]
[EndTime "11:37:19 PDT"]
[Termination "maciek_92 won by checkmate"]

1. d4 {[%clk 0:03:00.9]} 1... Nf6 {[%clk 0:02:55.9]} 2. Bg5 {[%clk 0:03:00.5]}
2... Ne4 {[%clk 0:02:47.2]} 3. h4 {[%clk 0:02:52.8]} 3... c5 {[%clk 0:02:42.4]}
4. d5 {[%clk 0:02:52.9]} 4... Qb6 {[%clk 0:02:42.5]} 5. Nd2 {[%clk 0:02:50.5]}
5... Nxd2 {[%clk 0:02:26.7]} 6. Bxd2 {[%clk 0:02:45.9]} 6... Qxb2 {[%clk
0:02:11.1]} 7. e4 {[%clk 0:02:42.4]} 7... g6 {[%clk 0:01:58.4]} 8. Rb1 {[%clk
0:02:40.2]} 8... Qe5 {[%clk 0:01:56]} 9. Bd3 {[%clk 0:02:38.6]} 9... Bg7 {[%clk
0:01:53.4]} 10. Nf3 {[%clk 0:02:38.5]} 10... Qc7 {[%clk 0:01:53.4]} 11. c4
{[%clk 0:02:23.4]} 11... d6 {[%clk 0:01:42.9]} 12. h5 {[%clk 0:02:19.9]} 12...
Nd7 {[%clk 0:01:33.9]} 13. Be2 {[%clk 0:01:25.2]} 13... Ne5 {[%clk 0:01:25.6]}
14. Nh4 {[%clk 0:01:23.1]} 14... a6 {[%clk 0:00:54.9]} 15. f4 {[%clk 0:01:18.9]}
15... Nd7 {[%clk 0:00:54]} 16. g4 {[%clk 0:01:09.8]} 16... b5 {[%clk 0:00:52.1]}
17. g5 {[%clk 0:00:59.2]} 17... b4 {[%clk 0:00:41.1]} 18. Qb3 {[%clk 0:00:54.1]}
18... a5 {[%clk 0:00:39.2]} 19. a4 {[%clk 0:00:53.2]} 19... Nb6 {[%clk 0:00:35]}
20. f5 {[%clk 0:00:48.8]} 20... Bd7 {[%clk 0:00:23.7]} 21. f6 {[%clk 0:00:29.4]}
21... exf6 {[%clk 0:00:23.6]} 22. h6 {[%clk 0:00:29.9]} 22... Bf8 {[%clk
0:00:24.1]} 23. gxf6 {[%clk 0:00:30.8]} 23... Bxa4 {[%clk 0:00:24.3]} 24. Qg3
{[%clk 0:00:29.3]} 24... O-O-O {[%clk 0:00:21.7]} 25. Ra1 {[%clk 0:00:22]} 25...
Kb7 {[%clk 0:00:17.2]} 26. O-O {[%clk 0:00:21.9]} 26... g5 {[%clk 0:00:15.6]}
27. Nf5 {[%clk 0:00:18.3]} 27... Ra8 {[%clk 0:00:14.5]} 28. Bxg5 {[%clk
0:00:13.8]} 28... Bd7 {[%clk 0:00:13.7]} 29. Ng7 {[%clk 0:00:13]} 29... a4
{[%clk 0:00:13]} 30. Bf4 {[%clk 0:00:13.2]} 30... a3 {[%clk 0:00:12.2]} 31. e5
{[%clk 0:00:13.8]} 31... dxe5 {[%clk 0:00:08.6]} 32. Bxe5 {[%clk 0:00:14.7]}
32... Qd8 {[%clk 0:00:09.3]} 33. Bf3 {[%clk 0:00:13.8]} 33... Nc8 {[%clk
0:00:08.5]} 34. d6+ {[%clk 0:00:14]} 34... Kb6 {[%clk 0:00:09]} 35. Bxa8 {[%clk
0:00:13.8]} 35... Na7 {[%clk 0:00:08.2]} 36. Bd5 {[%clk 0:00:13.7]} 36... Bc6
{[%clk 0:00:08.2]} 37. Rxa3 {[%clk 0:00:14]} 37... bxa3 {[%clk 0:00:07.6]} 38.
Rb1+ {[%clk 0:00:14.6]} 38... Ka6 {[%clk 0:00:07.2]} 39. Qxa3+ {[%clk
0:00:13.5]} 39... Qa5 {[%clk 0:00:08.1]} 40. Qxa5+ {[%clk 0:00:13.7]} 40... Kxa5
{[%clk 0:00:09]} 41. Bc3+ {[%clk 0:00:12.3]} 41... Ka6 {[%clk 0:00:09]} 42. Ra1+
{[%clk 0:00:12.9]} 42... Kb7 {[%clk 0:00:09.2]} 43. Rxa7+ {[%clk 0:00:12.7]}
43... Kxa7 {[%clk 0:00:10.1]} 44. Bxc6 {[%clk 0:00:12.8]} 44... Bxd6 {[%clk
0:00:10.7]} 45. Bd5 {[%clk 0:00:12.8]} 45... Rf8 {[%clk 0:00:10.1]} 46. Kf2
{[%clk 0:00:09.8]} 46... Bf4 {[%clk 0:00:10.4]} 47. Nf5 {[%clk 0:00:10.1]} 47...
Bg5 {[%clk 0:00:10.5]} 48. Kf3 {[%clk 0:00:09.8]} 48... Rb8 {[%clk 0:00:08.4]}
49. Kg4 {[%clk 0:00:08]} 49... Bc1 {[%clk 0:00:05.7]} 50. Bxf7 {[%clk 0:00:08]}
50... Rf8 {[%clk 0:00:05.6]} 51. Bd5 {[%clk 0:00:07.8]} 51... Kb6 {[%clk
0:00:05.5]} 52. f7 {[%clk 0:00:08.3]} 52... Kc7 {[%clk 0:00:04.1]} 53. Bg7
{[%clk 0:00:08.3]} 53... Rxf7 {[%clk 0:00:04.1]} 54. Bxf7 {[%clk 0:00:08.3]}
54... Kc6 {[%clk 0:00:04.8]} 55. Bd5+ {[%clk 0:00:09.2]} 55... Kb6 {[%clk
0:00:04.7]} 56. Kh5 {[%clk 0:00:09.9]} 56... Bd2 {[%clk 0:00:05.6]} 57. Bg8
{[%clk 0:00:09.7]} 57... Bf4 {[%clk 0:00:06.1]} 58. Bxh7 {[%clk 0:00:10.6]}
58... Bd6 {[%clk 0:00:06.5]} 59. Bg8 {[%clk 0:00:11.1]} 59... Kc6 {[%clk
0:00:07.4]} 60. Bd5+ {[%clk 0:00:11.8]} 60... Kd7 {[%clk 0:00:07.4]} 61. h7
{[%clk 0:00:12.7]} 61... Bf8 {[%clk 0:00:07.2]} 62. h8=Q {[%clk 0:00:13.6]}
62... Bxg7 {[%clk 0:00:08.1]} 63. Qh7 {[%clk 0:00:14.1]} 63... Ke8 {[%clk
0:00:08.1]} 64. Qxg7 {[%clk 0:00:14.5]} 64... Kd8 {[%clk 0:00:08.8]} 65. Qe7+
{[%clk 0:00:15]} 65... Kc8 {[%clk 0:00:09.7]} 66. Nd6+ {[%clk 0:00:15.1]} 66...
Kb8 {[%clk 0:00:10.6]} 67. Qb7# {[%clk 0:00:15.7]} 1-0

[Event "*** SCC Grand Prix: Titled Tuesday Blitz"]
[Site "Chess.com"]
[Date "2020.07.07"]
[Round "8"]
[White "anesar92"]
[Black "iaraldinho"]
[Result "0-1"]
[WhiteElo "2719"]
[BlackElo "2578"]
[TimeControl "180+1"]
[EndTime "11:37:20 PDT"]
[Termination "iaraldinho won by resignation"]

1. e4 {[%clk 0:03:00.9]} 1... c5 {[%clk 0:02:56.2]} 2. Nf3 {[%clk 0:03:01]} 2...
a6 {[%clk 0:02:56.6]} 3. c3 {[%clk 0:02:58.7]} 3... d5 {[%clk 0:02:56.1]} 4.
exd5 {[%clk 0:02:58.8]} 4... Qxd5 {[%clk 0:02:57]} 5. d4 {[%clk 0:02:58.4]} 5...
cxd4 {[%clk 0:02:57.9]} 6. cxd4 {[%clk 0:02:58.1]} 6... Nf6 {[%clk 0:02:58.4]}
7. Nc3 {[%clk 0:02:58.1]} 7... Qd6 {[%clk 0:02:58.7]} 8. Ne5 {[%clk 0:02:54.1]}
8... Nc6 {[%clk 0:02:53.8]} 9. Qa4 {[%clk 0:02:27]} 9... Qxd4 {[%clk 0:02:35.5]}
10. Nxc6 {[%clk 0:02:17.5]} 10... Qxa4 {[%clk 0:02:33.3]} 11. Nxa4 {[%clk
0:02:18]} 11... bxc6 {[%clk 0:02:33.4]} 12. Nb6 {[%clk 0:02:18.7]} 12... Rb8
{[%clk 0:02:33.2]} 13. Nxc8 {[%clk 0:02:18.9]} 13... Rxc8 {[%clk 0:02:34.1]} 14.
Bxa6 {[%clk 0:02:19.1]} 14... Rb8 {[%clk 0:02:33.8]} 15. Bf4 {[%clk 0:01:56.5]}
15... Rb4 {[%clk 0:02:19.3]} 16. Be3 {[%clk 0:01:47.7]} 16... Nd5 {[%clk
0:02:14.8]} 17. Bc5 {[%clk 0:01:27.3]} 17... Rxb2 {[%clk 0:02:11.4]} 18. O-O
{[%clk 0:01:27.4]} 18... e6 {[%clk 0:02:06.4]} 19. Rab1 {[%clk 0:01:27.5]} 19...
Rxa2 {[%clk 0:01:43.3]} 20. Rb8+ {[%clk 0:01:12.1]} 20... Kd7 {[%clk 0:01:43.1]}
21. Rb7+ {[%clk 0:01:12.4]} 21... Kd8 {[%clk 0:01:00.4]} 22. Bxf8 {[%clk
0:00:42.2]} 22... Rxf8 {[%clk 0:00:54.6]} 23. Bc4 {[%clk 0:00:42.1]} 23... Ra8
{[%clk 0:00:43.9]} 24. Rfb1 {[%clk 0:00:41.4]} 24... Rc8 {[%clk 0:00:42.3]} 25.
g3 {[%clk 0:00:24.8]} 25... Rc7 {[%clk 0:00:30.6]} 26. R7b3 {[%clk 0:00:24.8]}
26... Ke7 {[%clk 0:00:28.9]} 27. Kg2 {[%clk 0:00:25.1]} 27... Rd8 {[%clk
0:00:27]} 28. Bd3 {[%clk 0:00:23.9]} 28... h6 {[%clk 0:00:26.3]} 29. Rc1 {[%clk
0:00:23.6]} 29... Kf6 {[%clk 0:00:23.3]} 30. Be4 {[%clk 0:00:22.8]} 30... Rd6
{[%clk 0:00:22.9]} 31. Rf3+ {[%clk 0:00:22.1]} 31... Ke7 {[%clk 0:00:21.1]} 32.
Ra3 {[%clk 0:00:22.2]} 32... f5 {[%clk 0:00:20.8]} 33. Bf3 {[%clk 0:00:22.3]}
33... Kf6 {[%clk 0:00:20.5]} 34. Ra6 {[%clk 0:00:21.4]} 34... Ne7 {[%clk
0:00:20.4]} 35. h4 {[%clk 0:00:20.1]} 35... e5 {[%clk 0:00:20.7]} 36. Be2 {[%clk
0:00:19.4]} 36... e4 {[%clk 0:00:20.7]} 37. h5 {[%clk 0:00:19.8]} 37... Ke5
{[%clk 0:00:20.7]} 38. Ra5+ {[%clk 0:00:19.7]} 38... c5 {[%clk 0:00:20.8]} 39.
Ra8 {[%clk 0:00:20]} 39... Rdc6 {[%clk 0:00:19.3]} 40. Bc4 {[%clk 0:00:18.5]}
40... Rd6 {[%clk 0:00:18.4]} 41. Re8 {[%clk 0:00:18.3]} 41... Rd4 {[%clk
0:00:17.9]} 42. Be2 {[%clk 0:00:18.3]} 42... Kd6 {[%clk 0:00:18]} 43. Ra1 {[%clk
0:00:18]} 43... c4 {[%clk 0:00:17.4]} 44. Bd1 {[%clk 0:00:16.9]} 44... Nc6
{[%clk 0:00:17.1]} 45. Ba4 {[%clk 0:00:16.4]} 45... Kc5 {[%clk 0:00:16.5]} 46.
Bxc6 {[%clk 0:00:16]} 46... Rxc6 {[%clk 0:00:16.4]} 47. Ra5+ {[%clk 0:00:16]}
47... Kb4 {[%clk 0:00:16.7]} 48. Rxf5 {[%clk 0:00:16.4]} 48... c3 {[%clk
0:00:17]} 49. Rb8+ {[%clk 0:00:16.7]} 49... Kc4 {[%clk 0:00:17.1]} 50. Rb1
{[%clk 0:00:15.2]} 50... c2 {[%clk 0:00:17.3]} 51. Rc1 {[%clk 0:00:15.6]} 51...
Kc3 {[%clk 0:00:17.5]} 52. Rf7 {[%clk 0:00:07.2]} 52... Kd2 {[%clk 0:00:16.3]}
53. Rxc2+ {[%clk 0:00:06.6]} 53... Rxc2 {[%clk 0:00:17.2]} 54. Rxg7 {[%clk
0:00:07.5]} 54... Ke1 {[%clk 0:00:17.5]} 55. Kh3 {[%clk 0:00:07.6]} 55... Rxf2
{[%clk 0:00:16.8]} 56. Rg6 {[%clk 0:00:08]} 56... Rf3 {[%clk 0:00:16.7]} 57.
Rxh6 {[%clk 0:00:08.2]} 57... Kf2 {[%clk 0:00:16.4]} 58. Rg6 {[%clk 0:00:08.2]}
58... Rdd3 {[%clk 0:00:16.7]} 59. Kh4 {[%clk 0:00:07.9]} 59... Rxg3 {[%clk
0:00:16.9]} 60. Rf6+ {[%clk 0:00:08.5]} 60... Rdf3 {[%clk 0:00:16.7]} 61. Rc6
{[%clk 0:00:08.6]} 61... e3 {[%clk 0:00:16.9]} 62. h6 {[%clk 0:00:08.4]} 62...
e2 {[%clk 0:00:16.8]} 0-1

[Event "*** SCC Grand Prix: Titled Tuesday Blitz"]
[Site "Chess.com"]
[Date "2020.07.07"]
[Round "8"]
[White "XDPS"]
[Black "Gennady_Kozlov"]
[Result "0-1"]
[WhiteElo "2716"]
[BlackElo "2560"]
[TimeControl "180+1"]
[EndTime "11:37:22 PDT"]
[Termination "Gennady_Kozlov won on time"]

1. d4 {[%clk 0:02:54.1]} 1... e6 {[%clk 0:02:40]} 2. Nf3 {[%clk 0:02:50.7]} 2...
Nf6 {[%clk 0:02:38.4]} 3. Bf4 {[%clk 0:02:46.4]} 3... Be7 {[%clk 0:02:37.7]} 4.
e3 {[%clk 0:02:45.5]} 4... O-O {[%clk 0:02:34]} 5. h3 {[%clk 0:02:44.8]} 5... d5
{[%clk 0:02:33.9]} 6. Nbd2 {[%clk 0:02:36.5]} 6... c5 {[%clk 0:02:34.8]} 7. c3
{[%clk 0:02:36.2]} 7... Nc6 {[%clk 0:02:34.8]} 8. Bd3 {[%clk 0:02:36]} 8... Bd6
{[%clk 0:02:34.8]} 9. dxc5 {[%clk 0:02:23]} 9... Bxc5 {[%clk 0:02:32]} 10. Qe2
{[%clk 0:02:23]} 10... Bd6 {[%clk 0:02:29.7]} 11. Bxd6 {[%clk 0:02:18.6]} 11...
Qxd6 {[%clk 0:02:17.4]} 12. e4 {[%clk 0:02:18.1]} 12... dxe4 {[%clk 0:02:16.6]}
13. Bxe4 {[%clk 0:02:12.1]} 13... Nxe4 {[%clk 0:02:09]} 14. Nxe4 {[%clk
0:02:11.9]} 14... Qf4 {[%clk 0:02:08.1]} 15. O-O {[%clk 0:02:00.1]} 15... Bd7
{[%clk 0:02:03.5]} 16. Nc5 {[%clk 0:01:55.4]} 16... Bc8 {[%clk 0:02:01.5]} 17.
Rad1 {[%clk 0:01:53]} 17... b6 {[%clk 0:02:01.3]} 18. Ne4 {[%clk 0:01:29.6]}
18... Bb7 {[%clk 0:01:53.6]} 19. Nd6 {[%clk 0:01:28.7]} 19... Rab8 {[%clk
0:01:46.5]} 20. Nxb7 {[%clk 0:01:03.8]} 20... Rxb7 {[%clk 0:01:45.6]} 21. Rd3
{[%clk 0:01:04.5]} 21... Ne7 {[%clk 0:01:40.9]} 22. Rfd1 {[%clk 0:01:03.8]}
22... Nd5 {[%clk 0:01:40.5]} 23. Rd4 {[%clk 0:01:02.5]} 23... Qf6 {[%clk
0:01:39.8]} 24. c4 {[%clk 0:01:01.4]} 24... Nf4 {[%clk 0:01:39.1]} 25. Qe3
{[%clk 0:01:00.8]} 25... Ng6 {[%clk 0:01:38.5]} 26. b3 {[%clk 0:00:59.7]} 26...
h6 {[%clk 0:01:36.5]} 27. Qe4 {[%clk 0:00:57.7]} 27... Re7 {[%clk 0:01:35.6]}
28. g3 {[%clk 0:00:54.6]} 28... Rfe8 {[%clk 0:01:33.2]} 29. h4 {[%clk
0:00:54.7]} 29... Qf5 {[%clk 0:01:24.9]} 30. Qe3 {[%clk 0:00:44.6]} 30... e5
{[%clk 0:01:23.7]} 31. Rd5 {[%clk 0:00:43.2]} 31... f6 {[%clk 0:01:22.9]} 32.
Nd2 {[%clk 0:00:40.3]} 32... Qh3 {[%clk 0:01:20.6]} 33. Qe4 {[%clk 0:00:35.6]}
33... Nf8 {[%clk 0:01:19.3]} 34. Qg2 {[%clk 0:00:31.9]} 34... Qg4 {[%clk
0:01:08]} 35. Ne4 {[%clk 0:00:31.5]} 35... f5 {[%clk 0:01:04.6]} 36. Nd6 {[%clk
0:00:31.6]} 36... Rb8 {[%clk 0:01:01.3]} 37. f3 {[%clk 0:00:22.8]} 37... Qg6
{[%clk 0:01:00.5]} 38. g4 {[%clk 0:00:23.5]} 38... fxg4 {[%clk 0:00:55.3]} 39.
Qxg4 {[%clk 0:00:24.4]} 39... Qf6 {[%clk 0:00:53.6]} 40. Nf5 {[%clk 0:00:21]}
40... Rf7 {[%clk 0:00:53.3]} 41. Nd6 {[%clk 0:00:16.3]} 41... Qxf3 {[%clk
0:00:48.5]} 42. Qxf3 {[%clk 0:00:11.8]} 42... Rxf3 {[%clk 0:00:49.4]} 43. Rxe5
{[%clk 0:00:12.6]} 43... Ng6 {[%clk 0:00:48.8]} 44. Re4 {[%clk 0:00:12.3]} 44...
Rd8 {[%clk 0:00:44.1]} 45. Kg2 {[%clk 0:00:09.9]} 45... Rf6 {[%clk 0:00:42.4]}
46. Red4 {[%clk 0:00:10.4]} 46... Nxh4+ {[%clk 0:00:40.3]} 47. Rxh4 {[%clk
0:00:07.2]} 47... Rfxd6 {[%clk 0:00:39.9]} 48. Rxd6 {[%clk 0:00:07.5]} 48...
Rxd6 {[%clk 0:00:40.8]} 49. Kf3 {[%clk 0:00:07.5]} 49... Rd2 {[%clk 0:00:39.5]}
50. Ke4 {[%clk 0:00:06.7]} 50... Rxa2 {[%clk 0:00:38.9]} 51. Kd5 {[%clk
0:00:07.3]} 51... Kh7 {[%clk 0:00:37.2]} 52. b4 {[%clk 0:00:07.2]} 52... Rd2+
{[%clk 0:00:36.3]} 53. Kc6 {[%clk 0:00:07.2]} 53... g5 {[%clk 0:00:36]} 54. Rh1
{[%clk 0:00:06.8]} 54... g4 {[%clk 0:00:35.2]} 55. Ra1 {[%clk 0:00:07.1]} 55...
Rc2 {[%clk 0:00:31.7]} 56. Rxa7+ {[%clk 0:00:07]} 56... Kg6 {[%clk 0:00:32.3]}
57. c5 {[%clk 0:00:05]} 57... bxc5 {[%clk 0:00:31.7]} 58. b5 {[%clk 0:00:05.9]}
58... Rb2 {[%clk 0:00:30.5]} 59. b6 {[%clk 0:00:06.8]} 59... c4 {[%clk
0:00:29.7]} 60. Ra4 {[%clk 0:00:06.4]} 60... h5 {[%clk 0:00:29.1]} 61. Rxc4
{[%clk 0:00:06.3]} 61... g3 {[%clk 0:00:29.1]} 62. b7 {[%clk 0:00:05.5]} 62...
g2 {[%clk 0:00:27.3]} 63. Rc1 {[%clk 0:00:05.5]} 63... h4 {[%clk 0:00:27]} 64.
Kc7 {[%clk 0:00:05.9]} 64... h3 {[%clk 0:00:26.7]} 65. Rc6+ {[%clk 0:00:02.1]}
65... Kf5 {[%clk 0:00:25.8]} 66. Rb6 {[%clk 0:00:02.4]} 66... Rxb6 {[%clk
0:00:25.4]} 0-1